bitfinex-derivatives/quotes_BTCF0:USTF0_20250709
["timestamp","ask_amount","ask_price","bid_price","bid_amount"]
[1752023196116,0.01377273,109100.0,109090.0,0.96468921]
[1752023196316,0.01377273,109100.0,109090.0,1.39768072]
[1752023197528,0.01377273,109100.0,109090.0,1.68948072]
[1752023198024,0.01377273,109100.0,109090.0,1.67425072]
[1752023200731,0.01377273,109100.0,109090.0,1.49092272]
[1752023203126,0.01377273,109100.0,109090.0,1.53199901]
[1752023204725,0.01377273,109100.0,109090.0,1.2823355]
[1752023205030,0.01377273,109100.0,109090.0,1.53199901]
[1752023207321,0.01377273,109100.0,109090.0,1.88199901]
[1752023208133,0.01377273,109100.0,109090.0,1.97782133]
[1752023209131,0.02383443,109110.0,109100.0,0.1832749]
[1752023209328,0.02383443,109110.0,109100.0,0.63452317]
[1752023209832,0.02383443,109110.0,109100.0,0.68926451]
[1752023210734,0.01311518,109130.0,109120.0,0.1832413]
[1752023210934,0.02361873,109140.0,109130.0,0.1832246]
[1752023211137,0.40897873,109140.0,109130.0,0.34902797]
[1752023211434,0.72074224,109140.0,109130.0,0.27099797]
[1752023211635,0.90395004,109140.0,109130.0,0.27099797]
[1752023211932,0.90395004,109140.0,109130.0,0.28698797]
[1752023212131,0.57682653,109140.0,109130.0,0.28698797]
[1752023212437,0.20682653,109140.0,109130.0,0.64040844]
[1752023212736,0.22206653,109140.0,109130.0,0.64040844]
[1752023213433,0.22206653,109140.0,109130.0,0.64031193]
[1752023214021,0.22206653,109140.0,109130.0,0.64953168]
[1752023214638,0.03885873,109140.0,109130.0,0.64953168]
[1752023215340,0.02361873,109140.0,109130.0,0.64953168]
[1752023216433,0.20682653,109140.0,109130.0,0.39986817]
[1752023216639,0.20682653,109140.0,109130.0,0.63547553]
[1752023217141,0.20682653,109140.0,109130.0,0.38581202]
[1752023217336,0.20682653,109140.0,109130.0,0.63547553]
[1752023217533,0.22206653,109140.0,109130.0,0.37659227]
[1752023217834,0.57336653,109140.0,109130.0,0.53672258]
[1752023218042,0.85543004,109140.0,109130.0,0.28705907]
[1752023218340,0.85543004,109140.0,109130.0,0.30304907]
[1752023218531,0.85543004,109140.0,109130.0,0.28705907]
[1752023218731,0.85543004,109140.0,109130.0,0.30304907]
[1752023218933,0.85543004,109140.0,109130.0,0.28041907]
[1752023219133,0.53543004,109140.0,109130.0,0.28041907]
[1752023219435,0.89543004,109140.0,109130.0,0.30304907]
[1752023219941,0.89543004,109140.0,109130.0,0.28041907]
[1752023220344,0.28576653,109140.0,109130.0,0.30304907]
[1752023220544,0.63576653,109140.0,109130.0,0.30304907]
[1752023220745,0.63576653,109140.0,109130.0,0.28705907]
[1752023221042,0.88543004,109140.0,109130.0,0.28705907]
[1752023221242,0.88543004,109140.0,109130.0,0.30304907]
[1752023221444,0.63576653,109140.0,109130.0,0.30304907]
[1752023223036,0.55543004,109140.0,109130.0,0.13056678]
[1752023223339,0.55543004,109140.0,109130.0,0.30304907]
[1752023223340,1.51191004,109140.0,109130.0,0.30304907]
[1752023223542,1.51191004,109140.0,109130.0,0.11982447]
[1752023223742,1.49667004,109140.0,109130.0,0.22347211]
[1752023223944,1.27011653,109140.0,109130.0,0.22347211]
[1752023224145,1.49778004,109140.0,109130.0,0.23946211]
[1752023225043,1.24811653,109140.0,109130.0,0.23946211]
[1752023225241,1.49778004,109140.0,109130.0,0.23946211]
[1752023226348,1.49778004,109140.0,109130.0,0.05623751]
[1752023226842,1.49778004,109140.0,109130.0,0.04024751]
[1752023227248,1.49778004,109140.0,109130.0,0.22347211]
[1752023227635,1.49778004,109140.0,109130.0,0.04024751]
[1752023229248,1.49778004,109140.0,109130.0,0.22347211]
[1752023229950,1.49778004,109140.0,109130.0,0.23946211]
[1752023230143,0.57852653,109140.0,109130.0,0.55271258]
[1752023230348,1.23948653,109140.0,109130.0,0.58331258]
[1752023230847,0.09291873,109140.0,109130.0,0.59405521]
[1752023231041,0.00161873,109140.0,109130.0,0.68136449]
[1752023231247,0.00161873,109140.0,109130.0,0.67062186]
[1752023231448,0.00161873,109140.0,109130.0,1.32716422]
[1752023232350,0.01285705,109150.0,109140.0,0.1832078]
[1752023232544,0.01285705,109150.0,109140.0,0.87316375]
[1752023232745,0.01285705,109150.0,109140.0,0.96897248]
[1752023232943,0.01285705,109150.0,109140.0,0.9143632]
[1752023233248,0.01285705,109150.0,109140.0,0.8730974]
[1752023233454,0.01285705,109150.0,109140.0,0.42829235]
[1752023233752,0.01285705,109150.0,109140.0,0.92761937]
[1752023233948,0.01285705,109150.0,109140.0,0.42829235]
[1752023234350,0.01285705,109150.0,109140.0,0.67795586]
[1752023234745,0.01285705,109150.0,109140.0,0.69198274]
[1752023235439,0.01285705,109150.0,109140.0,0.44231923]
[1752023235653,0.01285705,109150.0,109140.0,1.35234274]
[1752023235854,0.01285705,109150.0,109140.0,1.37497274]
[1752023236056,0.01285705,109150.0,109140.0,1.12530923]
[1752023236356,0.01285705,109150.0,109140.0,1.62463625]
[1752023236543,0.19604805,109150.0,109140.0,1.37497274]
[1752023236748,0.10667764,109160.0,109140.0,1.37497274]
[1752023237050,0.02779097,109190.0,109180.0,0.1831407]
[1752023237258,0.53091487,109190.0,109180.0,0.03288004]
[1752023237451,0.79042838,109190.0,109180.0,0.21602074]
[1752023237649,2.18074838,109190.0,109180.0,0.21315758]
[1752023237843,1.93108487,109190.0,109180.0,0.21315758]
[1752023238153,2.18074838,109190.0,109180.0,0.21315758]
[1752023238454,1.92123487,109190.0,109180.0,0.23578758]
[1752023239355,1.92123487,109190.0,109180.0,0.31684417]
[1752023239756,1.92123487,109190.0,109180.0,0.3086527]
[1752023240143,1.92123487,109190.0,109180.0,0.054192]
[1752023240144,2.17089838,109190.0,109180.0,0.054192]
[1752023240356,2.17089838,109190.0,109180.0,0.070182]
[1752023241054,2.17089838,109190.0,109180.0,0.08092104]
[1752023242055,2.17089838,109190.0,109180.0,0.02476592]
[1752023242358,0.78057838,109190.0,109180.0,0.04001592]
[1752023242558,0.02779097,109190.0,109180.0,0.57607045]
[1752023242747,0.02042795,109200.0,109190.0,0.1831239]
[1752023242951,0.02042795,109200.0,109190.0,0.56689188]
[1752023243656,0.02042795,109200.0,109190.0,0.31722837]
[1752023243845,0.02042795,109200.0,109190.0,0.56689188]
[1752023244052,0.02042795,109200.0,109190.0,0.56686178]
[1752023244760,0.02042795,109200.0,109190.0,0.57638822]
[1752023244959,0.02042795,109200.0,109190.0,0.56565148]
[1752023245657,0.02042795,109200.0,109190.0,0.60654295]
[1752023245850,0.02042795,109200.0,109190.0,0.63694295]
[1752023246050,0.02042795,109200.0,109190.0,0.70897282]
[1752023246557,0.02042795,109200.0,109190.0,0.66808135]
[1752023246942,0.02042795,109200.0,109190.0,0.70897282]
[1752023247342,0.02042795,109200.0,109190.0,0.66808135]
[1752023248354,0.02042795,109200.0,109190.0,0.41841784]
[1752023248548,0.02042795,109200.0,109190.0,0.66808135]
[1752023248949,0.02042795,109200.0,109190.0,0.42915387]
[1752023249145,0.02042795,109200.0,109190.0,0.357124]
[1752023249350,0.02042795,109200.0,109190.0,0.59605148]
[1752023249558,0.02042795,109200.0,109190.0,0.34638797]
[1752023249751,0.02042795,109200.0,109190.0,0.60678751]
[1752023249957,0.02042795,109200.0,109190.0,0.34638797]
[1752023250158,0.02042795,109200.0,109190.0,0.5820524]
[1752023250457,0.02042795,109200.0,109190.0,0.59278843]
[1752023252058,0.02042795,109200.0,109190.0,0.34312492]
[1752023252262,0.02042795,109200.0,109190.0,0.59278843]
[1752023253169,0.02042795,109200.0,109190.0,0.62294387]
[1752023253657,0.02042795,109200.0,109190.0,0.66508036]
[1752023253956,0.02042795,109200.0,109190.0,0.8738524]
[1752023254462,0.02042795,109200.0,109190.0,0.5820524]
[1752023254653,0.02042795,109200.0,109190.0,0.29246245]
[1752023254654,0.78319856,109200.0,109190.0,0.29246245]
[1752023254859,0.85624856,109200.0,109190.0,0.29246245]
[1752023255048,0.84639856,109200.0,109190.0,0.29246245]
[1752023255651,0.52624856,109200.0,109190.0,0.29246245]
[1752023255852,0.65658505,109200.0,109190.0,0.29246245]
[1752023256347,0.59658505,109200.0,109190.0,0.29246245]
[1752023257064,0.65658505,109200.0,109190.0,0.29246245]
[1752023257365,0.65658505,109200.0,109190.0,0.22327245]
[1752023257563,0.27658505,109200.0,109190.0,0.26166245]
[1752023257860,0.60658505,109200.0,109190.0,0.26166245]
[1752023258262,0.60658505,109200.0,109190.0,0.27594]
[1752023258561,0.27658505,109200.0,109190.0,0.28667644]
[1752023258867,0.85624856,109200.0,109190.0,0.26353644]
[1752023259358,0.52624856,109200.0,109190.0,0.30442791]
[1752023259554,1.51068856,109200.0,109190.0,0.30442791]
[1752023261057,1.51068856,109200.0,109190.0,0.57723142]
[1752023261058,0.93053505,109200.0,109190.0,0.57723142]
[1752023261363,0.94038505,109200.0,109190.0,0.57723142]
[1752023261565,1.51004856,109200.0,109190.0,0.32756791]
[1752023262266,1.51004856,109200.0,109190.0,0.30442791]
[1752023262454,1.26038505,109200.0,109190.0,0.30442791]
[1752023262661,1.55004856,109200.0,109190.0,0.30442791]
[1752023263359,1.55004856,109200.0,109190.0,0.35894988]
[1752023263560,1.55004856,109200.0,109190.0,0.30442791]
[1752023263971,1.30038505,109200.0,109190.0,0.30442791]
[1752023264165,1.55004856,109200.0,109190.0,0.28917791]
[1752023264667,1.79971207,109200.0,109190.0,0.10605401]
[1752023264860,1.55620856,109200.0,109190.0,0.10605401]
[1752023265060,1.80587207,109200.0,109190.0,0.10605401]
[1752023265257,1.98903207,109200.0,109190.0,0.04089147]
[1752023265463,0.1831413,109180.0,109170.0,0.36576222]
[1752023265670,2.09973481,109180.0,109170.0,0.34464425]
[1752023265859,2.16453481,109180.0,109170.0,0.34464425]
[1752023266170,2.16453481,109180.0,109170.0,0.24433298]
[1752023266666,1.50069481,109180.0,109170.0,0.24433298]
[1752023267066,1.53069481,109180.0,109170.0,0.26747298]
[1752023268270,0.86745481,109180.0,109170.0,0.27047298]
[1752023268469,1.53045481,109180.0,109170.0,0.27047298]
[1752023268770,1.53045481,109180.0,109170.0,0.26747298]
[1752023268965,1.53045481,109180.0,109170.0,0.26947298]
[1752023269758,1.53045481,109180.0,109170.0,0.24633298]
[1752023271474,1.53045481,109180.0,109170.0,0.20054468]
[1752023273374,1.2807913,109180.0,109170.0,0.20054468]
[1752023273571,1.53045481,109180.0,109170.0,0.20054468]
[1752023274274,1.53045481,109180.0,109170.0,0.00213758]
[1752023275067,1.53045481,109180.0,109170.0,0.18529568]
[1752023275673,1.60482527,109180.0,109170.0,0.00213758]
[1752023275875,1.61098527,109180.0,109170.0,0.00213758]
[1752023276373,1.53661481,109180.0,109170.0,0.00213758]
[1752023277169,1.53045481,109180.0,109170.0,0.18529568]
[1752023277375,1.53045481,109180.0,109170.0,0.19948886]
[1752023278167,1.53661481,109180.0,109170.0,0.01633076]
[1752023278369,1.53661481,109180.0,109170.0,0.19948886]
[1752023278871,1.53661481,109180.0,109170.0,0.01633076]
[1752023281176,1.61166932,109180.0,109170.0,0.01633076]
[1752023282975,1.60146932,109180.0,109170.0,0.19948886]
[1752023283180,1.60146932,109180.0,109170.0,0.21519886]
[1752023283181,1.59161932,109180.0,109170.0,0.21519886]
[1752023284278,1.34195581,109180.0,109170.0,0.21519886]
[1752023284469,0.3204914,109190.0,109180.0,0.1831414]
[1752023284668,0.3204914,109190.0,109180.0,0.29772458]
[1752023284669,1.3499014,109190.0,109180.0,0.29772458]
[1752023284872,1.58971491,109190.0,109180.0,0.29772458]
[1752023285280,1.58971491,109190.0,109180.0,0.30846309]
[1752023286483,1.59939491,109190.0,109180.0,0.30846309]
[1752023286683,1.59939491,109190.0,109180.0,0.29772458]
[1752023288080,1.57939491,109190.0,109180.0,0.29772458]
[1752023288276,0.9339467,109190.0,109180.0,0.29772458]
[1752023288583,0.9437967,109190.0,109180.0,0.29772458]
[1752023288778,1.57346021,109190.0,109180.0,0.29772458]
[1752023289182,1.57294021,109190.0,109180.0,0.29772458]
[1752023289787,1.57294021,109190.0,109180.0,0.01419318]
[1752023290086,1.63960021,109190.0,109180.0,0.01419318]
[1752023290784,0.20353585,109200.0,109190.0,0.1831246]
[1752023290980,0.21338585,109200.0,109190.0,0.56180795]
[1752023291181,0.03027795,109200.0,109190.0,0.31214444]
[1752023291482,0.80304926,109200.0,109190.0,0.31214444]
[1752023291675,0.80304926,109200.0,109190.0,0.3520317]
[1752023292076,0.55338575,109200.0,109190.0,0.33783852]
[1752023292375,0.21338575,109200.0,109190.0,0.35186133]
[1752023292571,0.55338575,109200.0,109190.0,0.35186133]
[1752023292772,0.55338575,109200.0,109190.0,0.60152484]
[1752023292976,0.21338575,109200.0,109190.0,0.60152484]
[1752023293186,1.44276926,109200.0,109190.0,0.29648133]
[1752023293376,1.47466926,109200.0,109190.0,0.29648133]
[1752023293577,1.47466926,109200.0,109190.0,0.28245852]
[1752023294383,0.56528575,109200.0,109190.0,0.28245852]
[1752023294681,1.22448575,109200.0,109190.0,0.28245852]
[1752023294884,1.22448575,109200.0,109190.0,0.31565852]
[1752023295389,0.56528575,109200.0,109190.0,0.31565852]
[1752023295687,1.22416575,109200.0,109190.0,0.33993852]
[1752023296286,0.90416575,109200.0,109190.0,0.33993852]
[1752023296489,0.03027795,109200.0,109190.0,0.58960203]
[1752023296785,0.67886795,109200.0,109190.0,0.58960203]
[1752023296982,0.68871795,109200.0,109190.0,0.58960203]
[1752023297393,0.67886795,109200.0,109190.0,0.58960203]
[1752023297887,0.67886795,109200.0,109190.0,0.59160203]
[1752023298389,0.67918795,109200.0,109190.0,0.59160203]
[1752023298783,0.02042795,109200.0,109190.0,0.59160203]
[1752023298983,0.67858795,109200.0,109190.0,0.59160203]
[1752023299181,0.67858795,109200.0,109190.0,0.58086537]
[1752023299492,0.67858795,109200.0,109190.0,0.59160136]
[1752023299680,0.67858795,109200.0,109190.0,0.58086537]
[1752023300090,0.67858795,109200.0,109190.0,0.54087537]
[1752023300289,0.67858795,109200.0,109190.0,0.58086537]
[1752023300490,0.67858795,109200.0,109190.0,0.59160133]
[1752023301191,0.67858795,109200.0,109190.0,0.34193782]
[1752023301390,0.67858795,109200.0,109190.0,0.59160133]
[1752023301588,0.87062575,109200.0,109190.0,0.59160133]
[1752023302075,0.86077575,109200.0,109190.0,0.59160133]
[1752023302290,0.87062575,109200.0,109190.0,0.59160133]
[1752023303183,1.20062575,109200.0,109190.0,0.59160133]
[1752023303393,1.20062575,109200.0,109190.0,0.34193782]
[1752023303685,0.68751795,109200.0,109190.0,0.59160133]
[1752023303890,0.68751795,109200.0,109190.0,0.6461233]
[1752023304585,0.87062575,109200.0,109190.0,0.6461233]
[1752023305692,0.21338575,109200.0,109190.0,0.6461233]
[1752023305990,0.87002575,109200.0,109190.0,0.6461233]
[1752023306693,0.87002575,109200.0,109190.0,0.64612354]
[1752023307390,0.87002575,109200.0,109190.0,0.63538734]
[1752023308291,0.21338575,109200.0,109190.0,0.63538734]
[1752023308590,0.86918575,109200.0,109190.0,0.63538734]
[1752023309798,0.86906575,109200.0,109190.0,0.63538734]
[1752023311596,0.21338575,109200.0,109190.0,0.63538734]
[1752023311791,0.86858575,109200.0,109190.0,0.63538734]
[1752023312588,0.86858575,109200.0,109190.0,0.38572383]
[1752023312796,0.86858575,109200.0,109190.0,0.63538734]
[1752023312987,0.90128575,109200.0,109190.0,0.63538734]
[1752023313184,0.90128575,109200.0,109190.0,0.71754461]
[1752023313392,1.27128575,109200.0,109190.0,0.4346811]
[1752023313696,1.30248575,109200.0,109190.0,0.68434461]
[1752023315096,1.30248575,109200.0,109190.0,0.69508082]
[1752023315288,1.30248575,109200.0,109190.0,0.60755885]
[1752023320693,1.30248575,109200.0,109190.0,0.35789534]
[1752023321090,1.30248575,109200.0,109190.0,0.60755885]
[1752023321900,1.30248575,109200.0,109190.0,0.35789534]
[1752023322093,1.30248575,109200.0,109190.0,0.60755885]
[1752023322498,1.30248575,109200.0,109190.0,0.35789534]
[1752023322690,1.30248575,109200.0,109190.0,0.60755885]
[1752023323101,1.30248575,109200.0,109190.0,0.3303667]
[1752023323499,1.30248575,109200.0,109190.0,0.58003021]
[1752023323793,1.30248575,109200.0,109190.0,0.569294]
[1752023324000,1.30248575,109200.0,109190.0,0.58003021]
[1752023324298,1.30248575,109200.0,109190.0,0.66218748]
[1752023324501,1.30248575,109200.0,109190.0,0.62230022]
[1752023324699,1.30248575,109200.0,109190.0,0.66237439]
[1752023325199,1.30248575,109200.0,109190.0,0.33055361]
[1752023325403,1.30248575,109200.0,109190.0,0.56948091]
[1752023325603,1.30248575,109200.0,109190.0,0.58021712]
[1752023326503,1.19554575,109200.0,109190.0,0.58021712]
[1752023326902,1.22674575,109200.0,109190.0,0.61151712]
[1752023328598,1.25754575,109200.0,109190.0,0.36185361]
[1752023328803,1.25754575,109200.0,109190.0,0.61151712]
[1752023330317,1.25754575,109200.0,109190.0,0.61154324]
[1752023330608,1.50720926,109200.0,109190.0,0.10746513]
[1752023330814,1.50720926,109200.0,109190.0,0.29058973]
[1752023330815,1.51336926,109200.0,109190.0,0.29058973]
[1752023331010,1.51336926,109200.0,109190.0,0.10746513]
[1752023331218,1.51336926,109200.0,109190.0,0.29058973]
[1752023331801,1.51336926,109200.0,109190.0,0.10746513]
[1752023332005,1.51336926,109200.0,109190.0,0.09383854]
[1752023332211,1.51336926,109200.0,109190.0,0.27696314]
[1752023333201,1.51336926,109200.0,109190.0,0.10746513]
[1752023333406,1.51336926,109200.0,109190.0,0.17888619]
[1752023333609,1.76303277,109200.0,109190.0,0.17888619]
[1752023333906,1.51336926,109200.0,109190.0,0.17888619]
[1752023334307,1.51336926,109200.0,109190.0,0.09382375]
[1752023336117,1.76303277,109200.0,109190.0,0.08308584]
[1752023336919,1.11087277,109200.0,109190.0,0.08308584]
[1752023337110,1.51176926,109200.0,109190.0,0.05283832]
[1752023337310,1.49575926,109200.0,109190.0,0.05283832]
[1752023337511,1.50191926,109200.0,109190.0,0.05083832]
[1752023337817,1.50191926,109200.0,109180.0,0.04098555]
[1752023337818,0.1831246,109190.0,109180.0,0.04098555]
[1752023338015,0.88373811,109190.0,109180.0,0.04098555]
[1752023338412,0.88373811,109190.0,109180.0,0.09561418]
[1752023338614,0.88373811,109190.0,109180.0,0.04098555]
[1752023339420,0.88373811,109190.0,109170.0,0.37047536]
[1752023339421,0.1831414,109180.0,109170.0,0.37047536]
[1752023339621,1.46684491,109180.0,109170.0,0.38557536]
[1752023340816,1.46684491,109180.0,109170.0,0.37047536]
[1752023341022,1.46684491,109180.0,109170.0,0.37247536]
[1752023341526,1.2171814,109180.0,109170.0,0.37247536]
[1752023341725,1.46684491,109180.0,109170.0,0.38757536]
[1752023342525,1.2233414,109180.0,109170.0,0.28089636]
[1752023342829,1.46684491,109180.0,109170.0,0.28089636]
[1752023343124,1.46684491,109180.0,109170.0,0.29599636]
[1752023343624,1.2171814,109180.0,109170.0,0.29599636]
[1752023343922,1.46684491,109180.0,109170.0,0.29599636]
[1752023344320,1.2171814,109180.0,109170.0,0.29599636]
[1752023344721,1.46684491,109180.0,109170.0,0.29599636]
[1752023345227,1.46684491,109180.0,109170.0,0.24136773]
[1752023346436,1.2171814,109180.0,109170.0,0.24136773]
[1752023346726,1.46684491,109180.0,109170.0,0.24136773]
[1752023347627,1.53901052,109180.0,109170.0,0.24136773]
[1752023349322,1.28934701,109180.0,109170.0,0.24136773]
[1752023349521,1.53901052,109180.0,109170.0,0.24136773]
[1752023349922,1.53901052,109180.0,109170.0,0.28102372]
[1752023350331,1.28934701,109180.0,109170.0,0.28102372]
[1752023350531,1.50841052,109180.0,109170.0,0.33546372]
[1752023350831,1.25874701,109180.0,109170.0,0.36656372]
[1752023351532,1.25874701,109180.0,109170.0,0.32690773]
[1752023353036,1.50841052,109180.0,109170.0,0.32690773]
[1752023353234,1.25874701,109180.0,109170.0,0.32690773]
[1752023354132,1.50841052,109180.0,109170.0,0.32690773]
[1752023355030,1.50804467,109180.0,109170.0,0.57620539]
[1752023355432,1.50804467,109180.0,109170.0,0.55336539]
[1752023356133,1.50804467,109180.0,109170.0,0.57620539]
[1752023356634,1.50804467,109180.0,109170.0,0.63083402]
[1752023356837,1.50804467,109180.0,109170.0,0.38153636]
[1752023357030,1.50804467,109180.0,109170.0,0.63083402]
[1752023358136,1.25874701,109180.0,109170.0,0.63083402]
[1752023358336,1.50804467,109180.0,109170.0,0.63083402]
[1752023359832,1.50804467,109180.0,109170.0,0.38153636]
[1752023360031,1.50804467,109180.0,109170.0,0.63083402]
[1752023360335,1.25874701,109180.0,109170.0,0.63083402]
[1752023360536,1.50804467,109180.0,109170.0,0.63083402]
[1752023361153,1.25874701,109180.0,109170.0,0.58984847]
[1752023361341,1.50804467,109180.0,109170.0,0.58984847]
[1752023361540,1.50804467,109180.0,109170.0,0.55190847]
[1752023361741,1.50804467,109180.0,109170.0,0.56700847]
[1752023363340,1.50804467,109180.0,109170.0,0.53590847]
[1752023363540,1.53904467,109180.0,109170.0,0.53590847]
[1752023363740,1.28974701,109180.0,109170.0,0.53590847]
[1752023363942,1.53904467,109180.0,109170.0,0.53590847]
[1752023364846,1.28974701,109180.0,109170.0,0.53590847]
[1752023365036,1.53904467,109180.0,109170.0,0.53590847]
[1752023365845,1.53904467,109180.0,109170.0,0.28661081]
[1752023366039,1.78834233,109180.0,109170.0,0.10346621]
[1752023366340,0.3522,109180.0,109170.0,0.54833581]
[1752023366644,0.3522,109180.0,109170.0,0.35993815]
[1752023366645,0.8307013,109180.0,109170.0,0.35993815]
[1752023366945,0.8307013,109180.0,109170.0,0.60923581]
[1752023367841,0.8405513,109180.0,109170.0,0.60923581]
[1752023368041,0.8307013,109180.0,109170.0,0.60923581]
[1752023368343,0.56978696,109190.0,109180.0,0.1831413]
[1752023368538,0.8402145,109190.0,109180.0,0.79287969]
[1752023368744,1.40951216,109190.0,109180.0,0.62861066]
[1752023369046,0.8402145,109190.0,109180.0,0.62854194]
[1752023369235,0.8402145,109190.0,109180.0,0.379313]
[1752023370145,0.8402145,109190.0,109180.0,0.380313]
[1752023370546,0.1929745,109190.0,109180.0,0.380313]
[1752023370741,0.8397745,109190.0,109180.0,0.380313]
[1752023370948,0.8396945,109190.0,109180.0,0.380313]
[1752023373149,0.8396945,109190.0,109180.0,0.33930993]
[1752023373449,0.8396945,109190.0,109180.0,0.38028097]
[1752023378251,0.8396945,109190.0,109180.0,0.62950991]
[1752023378747,0.00985,109190.0,109180.0,0.62950991]
[1752023378945,0.00985,109190.0,109180.0,1.87913887]
[1752023379357,0.1929745,109190.0,109180.0,1.87913887]
[1752023380256,0.1929745,109190.0,109180.0,1.87813887]
[1752023380458,0.00985,109190.0,109180.0,1.88113887]
[1752023380760,0.28142645,109200.0,109190.0,0.1831245]
[1752023380960,0.28142645,109200.0,109190.0,0.55118763]
[1752023380961,0.29127645,109200.0,109190.0,0.55118763]
[1752023381153,0.29127645,109200.0,109190.0,0.32588869]
[1752023381360,0.21339905,109200.0,109190.0,0.57511763]
[1752023382653,0.21339905,109200.0,109190.0,0.57611763]
[1752023383454,0.21339905,109200.0,109190.0,0.63074626]
[1752023386859,0.21339905,109200.0,109190.0,0.38151732]
[1752023387157,0.24559905,109200.0,109190.0,0.40034042]
[1752023389661,0.24559905,109200.0,109190.0,0.64956936]
[1752023390566,0.24559905,109200.0,109190.0,0.40034042]
[1752023390864,0.4947899,109200.0,109190.0,0.64953127]
[1752023392467,0.24559905,109200.0,109190.0,0.64953127]
[1752023392670,0.4947899,109200.0,109190.0,0.64953127]
[1752023393167,0.4947899,109200.0,109190.0,0.59490264]
[1752023394464,0.4947899,109200.0,109190.0,0.48538718]
[1752023395272,0.4947899,109200.0,109190.0,1.09810718]
[1752023395570,0.79546356,109200.0,109190.0,1.10884404]
[1752023396472,0.7847267,109200.0,109190.0,1.10884404]
[1752023397471,0.8147267,109200.0,109190.0,1.10884404]
[1752023397671,0.8047267,109200.0,109190.0,1.10884404]
[1752023399374,0.8047267,109200.0,109190.0,1.16347267]
[1752023399573,0.8047267,109200.0,109190.0,1.10884404]
[1752023399777,0.8047267,109200.0,109190.0,0.85965319]
[1752023399980,0.8047267,109200.0,109190.0,1.10884404]
[1752023400478,0.8047267,109200.0,109190.0,1.16347267]
[1752023400679,0.8047267,109200.0,109190.0,1.10784406]
[1752023401174,0.8047267,109200.0,109190.0,1.16247269]
[1752023401469,0.79613718,109200.0,109190.0,1.16347269]
[1752023403274,0.79613718,109200.0,109190.0,1.1225485]
[1752023403475,1.04532803,109200.0,109190.0,0.30928551]
[1752023403675,1.07702803,109200.0,109190.0,0.95184551]
[1752023403871,1.07702803,109200.0,109190.0,0.96714551]
[1752023404077,1.08318803,109200.0,109190.0,0.12616101]
[1752023404272,1.08318803,109200.0,109190.0,0.07153238]
[1752023404481,1.08318803,109200.0,109190.0,0.12616101]
[1752023404685,1.08318803,109200.0,109190.0,0.07153238]
[1752023405671,1.08318803,109200.0,109190.0,0.07153309]
[1752023405874,0.58480633,109200.0,109190.0,0.25465769]
[1752023406076,0.57864633,109200.0,109190.0,0.54390854]
[1752023406286,1.07702803,109200.0,109190.0,0.54390854]
[1752023406477,0.82783718,109200.0,109190.0,0.59853717]
[1752023406682,0.82783718,109200.0,109190.0,0.55756477]
[1752023407083,0.82783718,109200.0,109190.0,0.55656477]
[1752023408586,1.47467718,109200.0,109190.0,0.55656477]
[1752023410588,1.47467718,109200.0,109190.0,0.63872204]
[1752023410787,1.47467718,109200.0,109190.0,0.38953119]
[1752023410986,1.47467718,109200.0,109190.0,0.63872204]
[1752023411688,1.47467718,109200.0,109190.0,0.38953119]
[1752023411889,1.47467718,109200.0,109190.0,0.63872204]
[1752023414092,1.47467718,109200.0,109190.0,0.61396204]
[1752023414298,1.47467718,109200.0,109190.0,0.36477119]
[1752023414505,1.47467718,109200.0,109190.0,0.61396204]
[1752023414705,1.47467718,109200.0,109190.0,0.63872204]
[1752023415496,1.47467718,109200.0,109190.0,0.61396204]
[1752023416005,1.47467718,109200.0,109190.0,0.63872204]
[1752023416400,1.47467718,109200.0,109190.0,0.36477119]
[1752023416705,1.21563633,109200.0,109190.0,0.59866204]
[1752023416901,1.46482718,109200.0,109190.0,0.61396204]
[1752023417808,1.71401803,109200.0,109190.0,0.61396204]
[1752023417997,1.46482718,109200.0,109190.0,0.61396204]
[1752023418398,1.46482718,109200.0,109190.0,0.59513894]
[1752023418707,1.46482718,109200.0,109190.0,0.58440135]
[1752023420507,1.21563633,109200.0,109190.0,0.58440135]
[1752023420702,1.46482718,109200.0,109190.0,0.58440135]
[1752023421308,1.46482718,109200.0,109190.0,0.56910135]
[1752023421604,1.46482718,109200.0,109190.0,0.58440135]
[1752023421794,1.71401803,109200.0,109190.0,0.3352103]
[1752023421992,1.71401803,109200.0,109190.0,0.25305303]
[1752023422199,1.71401803,109200.0,109190.0,0.58440115]
[1752023423207,1.71401803,109200.0,109190.0,0.48860446]
[1752023424909,1.71401803,109200.0,109190.0,0.23941361]
[1752023427412,1.21563633,109200.0,109190.0,0.23941361]
[1752023427607,1.71401803,109200.0,109190.0,0.48860446]
[1752023428611,1.71401803,109200.0,109190.0,0.23941361]
[1752023429403,1.71401803,109200.0,109190.0,0.48860446]
[1752023430010,1.71401803,109200.0,109190.0,0.23941361]
[1752023431009,1.71613803,109200.0,109190.0,0.04098921]
[1752023433206,1.71613803,109200.0,109190.0,0.09561784]
[1752023433616,1.96532888,109200.0,109190.0,0.09561784]
[1752023434114,1.71613803,109200.0,109190.0,0.09561784]
[1752023435219,1.71613803,109200.0,109190.0,0.04098921]
[1752023435914,0.1831246,109190.0,109180.0,0.1367859]
[1752023436117,0.87646545,109190.0,109180.0,0.1367859]
[1752023436711,0.88262545,109190.0,109180.0,0.1367859]
[1752023436912,1.1318163,109190.0,109180.0,0.1367859]
[1752023437721,1.1318163,109190.0,109180.0,0.05462863]
[1752023437924,1.1318163,109190.0,109180.0,0.09561478]
[1752023438615,1.1318163,109190.0,109180.0,0.04098615]
[1752023438823,0.1831413,109180.0,109170.0,0.09575236]
[1752023439023,1.709353,109180.0,109170.0,0.09575236]
[1752023439321,1.715513,109180.0,109170.0,0.04112373]
[1752023440424,1.715513,109180.0,109170.0,0.04312373]
[1752023442026,1.715513,109180.0,109170.0,0.04412373]
[1752023444428,1.72472574,109180.0,109170.0,0.04412373]
[1752023444723,1.78773863,109180.0,109170.0,0.04412373]
[1752023446129,1.78773863,109180.0,109170.0,0.00313758]
[1752023448022,1.7970182,109180.0,109170.0,0.00313758]
[1752023449536,1.78773863,109180.0,109170.0,0.00313758]
[1752023450029,0.183158,109170.0,109160.0,0.09554458]
[1752023450331,0.183158,109170.0,109160.0,0.04091595]
[1752023450332,1.1027497,109170.0,109160.0,0.04091595]
[1752023451324,1.1027497,109170.0,109160.0,0.04391595]
[1752023452225,1.7443097,109170.0,109160.0,0.04391595]
[1752023452427,0.1831748,109160.0,109150.0,0.09737058]
[1752023452628,1.0558565,109160.0,109150.0,0.09737058]
[1752023454335,1.0578565,109160.0,109150.0,0.09737058]
[1752023454828,1.6994165,109160.0,109150.0,0.05646089]
[1752023455428,1.7004165,109160.0,109150.0,0.05646089]
[1752023457435,1.7065765,109160.0,109150.0,0.05646089]
[1752023458028,1.7065765,109160.0,109150.0,0.09737266]
[1752023458831,1.95576735,109160.0,109150.0,0.04274403]
[1752023459033,1.95576735,109160.0,109150.0,0.09737266]
[1752023459443,1.95576735,109160.0,109150.0,0.04274403]
[1752023459633,1.7065765,109160.0,109150.0,0.09737266]
[1752023459935,1.7065765,109160.0,109150.0,0.00183226]
[1752023460940,1.45764974,109160.0,109150.0,0.00183226]
[1752023467452,1.45764974,109160.0,109140.0,0.07321177]